Cogmind - Beta 15 @@@ ROGUE MODE // 2025.09.25 @ 00:19:50 Player: kiul Result: Destroyed by P-60 Hacker with Shock Rifle Performance ------------- Evolutions (3) 1500 Regions Visited (7) 1400 Robots Destroyed (52) 260 Value Destroyed (1336) 1336 Prototype IDs (27) 540 Alien Tech Used (0) 0 Bonus (300) 300 TOTAL SCORE: 5336 Bonus ------- Aligned with FarCom 300 Cogmind --------- Core Integrity 0/700 Matter 166/300 Energy 63/100 System Corruption 7% Temperature Cool (0) Movement Core (350) Ox6 Location -7/Factory Parts ------- > --- POWER (2) -------- (None) > --- PROPULSION (4) --- (None) > --- UTILITY (5) ------ Large Storage Unit Advanced Visual Processing Unit Target Analyzer Target Analyzer > --- WEAPON (2) ------- (None) > --- INVENTORY (15) --- Improved Sensor Array Insulated Plating Skeleton Box Peak State ------------ > --- POWER ------------ Light Deuterium Engine Improved Deuterium Engine > --- PROPULSION ------- Aluminum Leg Improved Aluminum Leg Improved Carbon-fiber Leg > --- UTILITY ---------- Large Storage Unit Small Battery Advanced Visual Processing Unit Improved Utility Shielding Hacking Suite > --- WEAPON ----------- Light EM Pulse Cannon Katana > --- INVENTORY -------- Light Nuclear Core Improved Sensor Array Reactive Plating Insulated Plating Skeleton Box Medium Laser Heavy Assault Rifle [Rating: 32] Favorites ----------- Power Light Nuclear Core Engine Light Ion Engine Power Core Light Nuclear Core Propulsion Aluminum Leg Leg Aluminum Leg Utility Advanced Visual Processing Unit Device Sensor Array Storage Large Storage Unit Processor Advanced Visual Processing Unit Hackware Hacking Suite Protection Reactive Plating Weapon Heavy Assault Rifle Energy Gun Medium Laser Energy Cannon Light EM Pulse Cannon Ballistic Gun Heavy Assault Rifle Launcher Grenade Launcher Slashing Weapon Katana Build | -11 -10 -9 -9 -9 -8 -8 -7 ------- Run | Yrd Mat Mat Min Exi Min Mat Fac Slots Evolved 6 | . . 2 . . . 2 2 Power 1 | . . . . . . . 1 Propulsion 2 | . . 1 . . . 1 . Utility 3 | . . 1 . . . 1 1 Weapon . | . . . . . . . . Parts Attached 61 | 7 6 7 1 . 3 17 20 Power 14 | 1 . 1 1 . 2 3 6 Engine 8 | 1 . 1 1 . 2 2 1 Core 6 | . . . . . . 1 5 Reactor . | . . . . . . . . Propulsion 14 | 2 3 3 . . . 3 3 Treads . | . . . . . . . . Leg 14 | 2 3 3 . . . 3 3 Wheel . | . . . . . . . . Hover . | . . . . . . . . Flight . | . . . . . . . . Utility 18 | 2 1 2 . . . 7 6 Device 6 | 2 1 . . . . 3 . Storage 2 | . . . . . . 2 . Processor 4 | . . . . . . 2 2 Hackware 2 | . . 1 . . . . 1 Protection 4 | . . 1 . . . . 3 Artifact . | . . . . . . . . Weapon 15 | 2 2 1 . . 1 4 5 Energy Gun 3 | . . . . . . . 3 Energy Cannon 3 | . . . . . . 2 1 Ballistic Gun 5 | 2 1 1 . . . . 1 Ballistic Cannon . | . . . . . . . . Launcher 3 | . 1 . . . 1 1 . Special Weapon . | . . . . . . . . Impact Weapon . | . . . . . . . . Slashing Weapon 1 | . . . . . . 1 . Piercing Weapon . | . . . . . . . . Special Melee Weapon . | . . . . . . . . Unidentified Prototypes . | . . . . . . . . Parts Lost 42 | . 2 1 . . 5 9 25 Power 12 | . . 1 . . 2 2 7 Propulsion 9 | . . . . . 1 3 5 Utility 10 | . 1 . . . 2 2 5 Weapon 11 | . 1 . . . . 2 8 Highest Loss Streak 9 | . 1 1 . . 4 5 9 To Critical Strikes . | . . . . . . . . Average Backups 6 | 1 4 4 4 4 5 7 8 Power 1 | . 1 2 1 1 1 . 2 Propulsion . | . . . . . . . . Utility 1 | . . . . . . 2 3 Weapon 2 | . 2 2 3 3 3 2 2 Tool/Special . | . . . . . . . . Unused Backups 2 | . . . . . . . 2 Power . | . . . . . . . . Propulsion . | . . . . . . . . Utility 1 | . . . . . . . 1 Weapon . | . . . . . . . . Tool/Special 1 | . . . . . . . 1 Average Slot Usage (%) 82 | . 92 86 100 100 73 86 69 Engine 7 | . 14 9 11 11 6 4 4 Core 3 | . . . . . . 4 8 Leg 20 | . 28 23 33 33 26 27 5 Device 9 | . 25 16 11 11 11 8 . Storage 5 | . . . . . . 9 9 Processor 5 | . . . . . . 14 7 Hackware 4 | . . 9 11 11 4 . 6 Protection 4 | . . 5 11 11 3 . 9 Energy Gun 1 | . . . . . . . 4 Energy Cannon 3 | . . . . . . 8 5 Ballistic Gun 9 | . 15 22 22 22 11 3 2 Launcher 3 | . 8 . . . 10 4 . Peak Build Rating 32 | 9 9 13 13 14 17 26 32 Average Rating 17 | 6 8 11 13 13 11 21 26 On Entrance 10 | . 9 9 12 13 14 9 16 Naked Turns . | . . . . . . . . Heaviest Build 53 | 10 12 11 11 11 13 39 53 Greatest Support 43 | 20 20 33 33 33 33 43 41 Greatest Overweight (x) 17 | . 1 . . . . 1 17 Average Overweight (x) . | . . . . . . . 4 Largest Inventory Capacity 15 | 5 5 5 5 5 5 15 15 Average Capacity 9 | 5 5 5 5 5 5 12 15 Most Carried 11 | 3 5 5 4 5 5 11 11 Average Carried 6 | 1 4 4 4 4 5 7 8 Final Capacity 15 | 5 5 5 5 5 5 15 15 Final Carried 10 | 2 4 5 4 5 5 10 3 Class Distribution -------------------- 46% | Scavenger-Mutant 37% | Mutant 12% | Skirmisher 3% | Scavenger-Skirmisher Dominant Class ---------------- Mutant | -10/Materials Scavenger-Mutant | -9/Materials Scavenger-Mutant | -9/Mines Scavenger-Mutant | -9/Exiles Skirmisher | -8/Mines Scavenger-Mutant | -8/Materials Scavenger-Mutant | -7/Factory Resources | -11 -10 -9 -9 -9 -8 -8 -7 ----------- Run | Yrd Mat Mat Min Exi Min Mat Fac Matter Collected 1309 | 358 232 105 . . 32 367 215 Remotely . | . . . . . . . . Salvage Created 1511 | 132 328 148 . . 59 365 479 Parts 119 | 11 28 12 . . 9 26 33 Haulers Intercepted 2 | . . . . . . 2 . Recyclers Shooed . | . . . . . . . . Parts Field Recycled . | . . . . . . . . Retrieved Matter . | . . . . . . . . Parts Self-Destructed . | . . . . . . . . Prevented . | . . . . . . . . Kills | -11 -10 -9 -9 -9 -8 -8 -7 ------- Run | Yrd Mat Mat Min Exi Min Mat Fac Combat Hostiles Destroyed 37 | . 13 3 . . 7 4 10 Melee 6 | . . . . . . 2 4 Guns 21 | . 8 3 . . 4 . 6 Cannons 2 | . . . . . . 2 . AOE 8 | . 5 . . . 3 . . Classes Destroyed 12 | 3 4 2 . . . 2 1 Worker 1 | 1 . . . . . . . Builder 1 | . 1 . . . . . . Tunneler 3 | 3 . . . . . . . Hauler 2 | . . . . . . 2 . Recycler 1 | 1 . . . . . . . Operator 4 | . . 1 . . . 2 1 Watcher 3 | . 3 . . . . . . Swarmer 18 | . 9 . . . 7 . 2 Grunt 11 | . 4 2 . . . 2 3 Duelist 1 | . . 1 . . . . . Sentry 3 | . . . . . . 2 1 Programmer 4 | . . . . . . . 4 Best Kill Streak 6 | 4 6 3 . . 4 2 4 Combat Bots Only 4 | . 4 3 . . 4 2 4 Max Kills in Single Turn 3 | 1 2 1 . . 3 1 1 Gunslinging . | . . . . . . . . Exploded 3 | . 1 . . . 3 . . Melee 1 | . . . . . . 1 1 Uniques/NPCs Destroyed . | . . . . . . . . Combat | -11 -10 -9 -9 -9 -8 -8 -7 -------- Run | Yrd Mat Mat Min Exi Min Mat Fac Hostile Shots Fired 439 | . 56 28 . . 47 84 224 Missed 121 | . 14 10 . . 7 24 66 Hits 318 | . 42 18 . . 40 60 158 Melee 2 | . . 2 . . . . . Projectile 316 | . 42 16 . . 40 60 158 AOE 1 | . . . . . . . 1 Critical Strikes 8 | . . . . . 1 . 7 Actively Blocked 1 | . . . . . . . 1 Part Disruptions 2 | . 1 . . . . . 1 Damage Taken 4521 | . 543 232 . . 341 693 2712 Core 1039 | . 117 53 . . 60 105 704 Absorbed by Shields . | . . . . . . . . Redirected to Shielding 104 | . . . . . . . 104 Ignored by Resistances 19 | . . . . . . . 19 Core Remaining (%) 76 | 100 53 . . . 71 80 . Volleys Fired 149 | 22 42 13 . . 24 17 31 Largest 2 | 2 2 2 . . 2 2 2 Hottest 119 | 40 50 43 . . 53 119 119 Shots Fired 235 | 44 58 26 . . 28 32 47 Gun 179 | 44 46 26 . . 24 2 37 Cannon 40 | . . . . . . 30 10 Launcher 16 | . 12 . . . 4 . . Special . | . . . . . . . . Kinetic 162 | 44 46 26 . . 24 2 20 Thermal 16 | . . . . . . . 16 Explosive 16 | . 12 . . . 4 . . Electromagnetic 41 | . . . . . . 30 11 Robot Hit Streak 11 | 4 7 10 . . 11 6 6 Robot Miss Streak 6 | 5 3 2 . . 5 5 6 Penetration Max . | . . . . . . . . Secondary Targets . | . . . . . . . . Shots Hit Robots 149 | 24 29 16 . . 16 20 44 Core Hits 76 | 8 22 9 . . 6 12 19 Critical Kills 1 | . . . . . 1 . . Critical Parts Destroyed 1 | . . . . . . . 1 Critical Strikes 7 | . . . . . 1 1 5 Burn 1 | . . . . . . . 1 Destroy 2 | . . . . . 1 . 1 Corrupt 1 | . . . . . . 1 . Sever 3 | . . . . . . . 3 Melee Attacks 24 | . . . . . . 6 18 Impact . | . . . . . . . . Slashing 24 | . . . . . . 6 18 Piercing . | . . . . . . . . Sneak Attacks 2 | . . . . . . 1 1 Combat Hostiles . | . . . . . . . . Follow-up Attacks . | . . . . . . . . Damage Inflicted 3615 | 249 888 206 . . 516 787 969 Guns 1550 | 249 332 206 . . 222 30 511 Cannons 471 | . . . . . . 415 56 Explosions 945 | . 556 . . . 294 95 . Melee 642 | . . . . . . 241 401 Ramming 7 | . . . . . . 6 1 Kinetic 1341 | 249 332 206 . . 222 30 302 Thermal 270 | . . . . . . 81 189 Explosive 793 | . 499 . . . 294 . . Electromagnetic 562 | . 57 . . . . 429 76 Impact . | . . . . . . . . Slashing 642 | . . . . . . 241 401 Piercing . | . . . . . . . . Highest Corruption 7 | . . . . . . . 7 Average Corruption 5 | . . . . . . . 5 Corruption Purged . | . . . . . . . . Corruption Blocked . | . . . . . . . . Effects 27 | . . . . . . . 27 Message Errors 10 | . . . . . . . 10 Matter Fused 6 | . . . . . . . 6 Heat Flow Errors 1 | . . . . . . . 1 Energy Discharges 4 | . . . . . . . 4 Parts Fused 1 | . . . . . . . 1 Data Loss (minor) 4 | . . . . . . . 4 Misfires 1 | . . . . . . . 1 Overload Shots . | . . . . . . . . Overflow Damage 163 | . 72 . . . 38 33 20 Projectiles 22 | . . . . . . 22 . Explosions 121 | . 72 . . . 38 11 . Melee 20 | . . . . . . . 20 Knockbacks . | . . . . . . . . Impact . | . . . . . . . . Kinetic . | . . . . . . . . Secondary . | . . . . . . . . Self-Inflicted Damage 284 | . 116 . . . 22 . 146 Shots 8 | . 5 . . . 1 . 2 Rammed 1 | . . . . . . . 1 Targets Rammed 2 | . . . . . . 1 1 Kicked 1 | . . . . . . 1 . Crushed . | . . . . . . . . Highest Temperature 248 | . 10 8 . . . 120 248 Average Temperature 63 | . 4 4 . . . 48 84 Received Heat Transfer 657 | . 138 60 . . . 198 261 Siege Activations . | . . . . . . . . Martial Activations . | . . . . . . . . Shielding Activations . | . . . . . . . . Robots Disrupted . | . . . . . . . . Combat Hostiles . | . . . . . . . . Robots Corrupted . | . . . . . . . . Combat Hostiles . | . . . . . . . . Parts Fried 1 | . . . . . . 1 . Impact Corruptions . | . . . . . . . . Robots Melted . | . . . . . . . . Combat Hostiles . | . . . . . . . . Parts Melted 1 | . . . . . . . 1 Heat Transferred 656 | . . . . . . 100 556 Parts Sabotaged . | . . . . . . . . Parts Stolen . | . . . . . . . . Parts Stripped . | . . . . . . . . Power Chain Reactions 2 | . . . . . . 2 . Alert | -11 -10 -9 -9 -9 -8 -8 -7 ------- Run | Yrd Mat Mat Min Exi Min Mat Fac Maximum Alert Level 1 | . 1 . . . . . . Low Security (%) 94 | 100 74 100 100 . 100 100 100 Level 1 5 | . 25 . . . . . . Level 2 . | . . . . . . . . Level 3 . | . . . . . . . . Level 4 . | . . . . . . . . Level 5 . | . . . . . . . . High Security . | . . . . . . . . Max Security . | . . . . . . . . Peak Influence 256 | 10 256 65 21 . 104 60 62 Initial 54 | . . 54 21 . . 9 . Average 39 | 1 142 18 5 . 27 11 11 Influence Increases 1390 | 25 477 90 . . 194 231 373 Destroy 0b10 Robot/C 740 | . 260 60 . . 140 80 200 Destroy 0b10 Robot/NC 75 | 25 20 5 . . . 20 5 Destroy Leader 170 | . 56 10 . . 20 24 60 Successful Hack 5 | . . . . . . 5 . Disable Machine 135 | . 60 15 . . . 30 30 Destroy Structure 160 | . 81 . . . 34 12 33 Partial Spotted 15 | . . . . . . 15 . Lose Combat Pursuer 90 | . . . . . . 45 45 Influence Decreases 1390 | 25 347 165 55 . 170 255 373 Entered New Map 125 | . . 76 34 . . 15 . Time Decay 989 | 25 327 50 21 . 130 212 224 Lost Part 247 | . 20 10 . . 40 28 149 Purge Threat 29 | . . 29 . . . . . Squads Dispatched 8 | . 1 3 . . . . 4 Investigation 2 | . 1 1 . . . . . Extermination 3 | . . . . . . . 3 Reinforcement 3 | . . 2 . . . . 1 Assault . | . . . . . . . . Garrison . | . . . . . . . . Intercept . | . . . . . . . . Searches Triggered . | . . . . . . . . Construction Impeded . | . . . . . . . . Haulers Reinforced . | . . . . . . . . Active Scanning Responses . | . . . . . . . . Cargo Convoy Interrupts . | . . . . . . . . Stealth | -11 -10 -9 -9 -9 -8 -8 -7 --------- Run | Yrd Mat Mat Min Exi Min Mat Fac Distress Signals 4 | . 2 . . . . 2 . Communications Jammed . | . . . . . . . . Distress Signals . | . . . . . . . . Times Spotted 84 | . 17 9 . . 7 29 22 Peak Tracking Total 11 | . 4 6 . . 4 11 6 Tactical Retreats 3 | . . . . . . 2 1 Traps | -11 -10 -9 -9 -9 -8 -8 -7 ------- Run | Yrd Mat Mat Min Exi Min Mat Fac Traps Triggered 2 | . 2 . . . . . . Indirectly . | . . . . . . . . Trap Hack Attempts . | . . . . . . . . Triggered . | . . . . . . . . Disarmed . | . . . . . . . . Reprogrammed 6 | . 6 . . . . . . Reused . | . . . . . . . . Traps Extracted . | . . . . . . . . Installed . | . . . . . . . . Triggered . | . . . . . . . . Machines | -11 -10 -9 -9 -9 -8 -8 -7 ---------- Run | Yrd Mat Mat Min Exi Min Mat Fac Machines Disabled 9 | . 4 1 . . . 2 2 Max in Single Turn 2 | . 1 1 . . . 1 2 Machines Repaired . | . . . . . . . . Machines Dismantled . | . . . . . . . . Machines Sabotaged . | . . . . . . . . Overloaded Fab Kills . | . . . . . . . . Hacking | -11 -10 -9 -9 -9 -8 -8 -7 --------- Run | Yrd Mat Mat Min Exi Min Mat Fac Machines Accessed 10 | . 4 1 . 3 . 1 1 Terminals 7 | . 4 1 . . . 1 1 Fabricators . | . . . . . . . . Repair Stations . | . . . . . . . . Recycling Units . | . . . . . . . . Scanalyzers . | . . . . . . . . Garrison Access . | . . . . . . . . Total Hacks 40 | . 12 2 . 20 . 2 4 Successful 36 | . 10 2 . 20 . 2 2 Failed 4 | . 2 . . . . . 2 Catastrophic . | . . . . . . . . Database Lockouts . | . . . . . . . . Manual 3 | . . 2 . 1 . . . Terminals 20 | . 12 2 . . . 2 4 Fabricators . | . . . . . . . . Repair Stations . | . . . . . . . . Recycling Units . | . . . . . . . . Scanalyzers . | . . . . . . . . Garrison Access . | . . . . . . . . Terminal Hacks 36 | . 10 2 . 20 . 2 2 Record 24 | . 4 . . 19 . 1 . Prototype ID Bank 2 | . 1 . . . . . 1 Branch Access Points 1 | . 1 . . . . . . Alert Level 1 | . . 1 . . . . . Unreport Threat 1 | . . 1 . . . . . Locate Traps 1 | . 1 . . . . . . Reprogram Traps 1 | . 1 . . . . . . Hauler Manifests 2 | . 1 . . . . 1 . Registered Components 1 | . . . . . . . 1 Zone Layout 1 | . 1 . . . . . . Proto ID Catalog 1 | . . . . 1 . . . Fabricator Hacks . | . . . . . . . . Repair Station Hacks . | . . . . . . . . Recycling Unit Hacks . | . . . . . . . . Scanalyzer . | . . . . . . . . Garrison Access Hacks . | . . . . . . . . Unauthorized Hacks . | . . . . . . . . Terminals . | . . . . . . . . Fabricators . | . . . . . . . . Repair Stations . | . . . . . . . . Recycling Units . | . . . . . . . . Scanalyzers . | . . . . . . . . Garrison Access . | . . . . . . . . Data Cores Recovered 1 | . . . . . . 1 . Used . | . . . . . . . . Hacking Detections 4 | . 3 . . . . . 1 Full Trace Events 1 | . 1 . . . . . . Feedback Events . | . . . . . . . . Feedback Blocked . | . . . . . . . . Robot Schematics Acquired . | . . . . . . . . Robots Built . | . . . . . . . . Authchips . | . . . . . . . . Time . | . . . . . . . . Total Robot Build Rating . | . . . . . . . . Part Schematics Acquired . | . . . . . . . . Parts Built . | . . . . . . . . Authchips . | . . . . . . . . Time . | . . . . . . . . Total Part Build Rating . | . . . . . . . . Parts Repaired . | . . . . . . . . Time . | . . . . . . . . Parts Recycled . | . . . . . . . . Recycled Matter . | . . . . . . . . Retrieved Matter . | . . . . . . . . Retrieved Components . | . . . . . . . . Parts Scanalyzed . | . . . . . . . . Part Schematics Acquired . | . . . . . . . . Parts Damaged . | . . . . . . . . Bothacking | -11 -10 -9 -9 -9 -8 -8 -7 ------------ Run | Yrd Mat Mat Min Exi Min Mat Fac Used RIF Installer . | . . . . . . . . Robots Hacked . | . . . . . . . . Non-combat . | . . . . . . . . Combat . | . . . . . . . . Robot Hacks Applied . | . . . . . . . . Relay Couplers Released . | . . . . . . . . Fabnet Peak Effective % . | . . . . . . . . Robots Rewired . | . . . . . . . . Allies Hacked . | . . . . . . . . Hacks Repelled . | . . . . . . . . Allies | -11 -10 -9 -9 -9 -8 -8 -7 -------- Run | Yrd Mat Mat Min Exi Min Mat Fac Total Allies . | . . . . . . . . Largest Group . | . . . . . . . . Highest-Rated Group . | . . . . . . . . Highest-Rated Ally . | . . . . . . . . Total Orders . | . . . . . . . . Ally Attacks . | . . . . . . . . Total Damage . | . . . . . . . . Kills . | . . . . . . . . Allies Corrupted . | . . . . . . . . Allies Melted . | . . . . . . . . Intel | -11 -10 -9 -9 -9 -8 -8 -7 ------- Run | Yrd Mat Mat Min Exi Min Mat Fac Active Infowar (turns) 5138 | 85 986 299 114 363 487 1129 1675 Optics 2791 | . . . . . . 1116 1675 Sensors 2175 | . 523 299 114 363 487 389 . Terrain 1217 | 76 986 155 . . . . . Seismic 354 | 85 269 . . . . . . Robot Analysis Total . | . . . . . . . . Derelict Logs Recovered 1 | . . . 1 . . . . Drone Launches . | . . . . . . . . Drone Recoveries . | . . . . . . . . Exploration | -11 -10 -9 -9 -9 -8 -8 -7 ------------- Run | Yrd Mat Mat Min Exi Min Mat Fac Turns Passed 5245 | 192 986 299 114 363 487 1129 1675 Spaces Moved 2833 | 109 712 203 95 302 359 645 408 Core 126 | 19 . . . . . . 107 Treads . | . . . . . . . . Legs 2707 | 90 712 203 95 302 359 645 301 Wheels . | . . . . . . . . Hover . | . . . . . . . . Flight . | . . . . . . . . Fastest Speed 50 | 50 120 120 120 120 120 120 190 Average Speed 158 | 107 121 120 120 120 120 132 366 Slowest Speed 900 | 120 190 120 120 120 120 190 900 Overloaded Moves . | . . . . . . . . Propulsion Burnouts . | . . . . . . . . Robots Hopped . | . . . . . . . . Potential Cave-ins 5 | . . . . . 5 . . Cave-ins Triggered . | . . . . . . . . Exploration Rate (%) 38 | 5 89 22 23 61 67 32 9 Regions Visited 7 Branch Regions 3 Pre-discovered Areas . | . . . . . . . . Known Exits Taken . | . . . . . . . . Unknown Exits Taken 7 | 1 1 1 1 1 1 1 . Scrap Searched . | . . . . . . . . Spaces Dug . | . . . . . . . . Terrain Destroyed 171 | . 79 . . . 44 10 38 Melee . | . . . . . . . . Projectile . | . . . . . . . . AOE 171 | . 79 . . . 44 10 38 Terrain Rammed . | . . . . . . . . Walls Destroyed . | . . . . . . . . Machines Disabled . | . . . . . . . . Actions | -11 -10 -9 -9 -9 -8 -8 -7 --------- Run | Yrd Mat Mat Min Exi Min Mat Fac Total 3305 | 141 771 234 95 302 385 875 502 Wait 184 | . . 5 . . . 172 7 Move 2826 | 108 711 202 94 301 358 644 408 Hop . | . . . . . . . . Pick Up 29 | 4 3 2 . 1 . 10 9 Fast Attach 24 | 5 4 2 . . 1 8 4 Attach 26 | 2 1 . 1 . . 4 18 Detach 1 | . . . . . . 1 . Swap 30 | . 7 6 . . 2 9 6 Drop 10 | . 3 4 . . . 3 . Fire 149 | 22 42 13 . . 24 17 31 Melee 24 | . . . . . . 6 18 Ram 1 | . . . . . . . 1 Kick 1 | . . . . . . 1 . Crush . | . . . . . . . . Escape Stasis . | . . . . . . . . Rewire . | . . . . . . . . Trap . | . . . . . . . . Miscellaneous . | . . . . . . . . Route ------- -11/Scrapyard -10/Materials (discovered 5 exits: *Mat x3 / *Min x2) -9/Materials -9/Mines -9/Exiles -8/Mines -8/Materials -7/Factory History --------- Turn | Location | Event 9 | -11/Scrapyard | Discovered new exit (range 16) 193 | -11/Scrapyard | Entered Materials 282 | -10/Materials | Discovered new exit (range 15) 300 | -10/Materials | Discovered new exit (range 15) 315 | -10/Materials | Build established: Mutant 527 | -10/Materials | Discovered new exit (range 16) 630 | -10/Materials | Discovered new exit (range 4) 1057 | -10/Materials | Discovered new exit (range 15) 1114 | -10/Materials | Identified exit to Mines 1179 | -10/Materials | Entered another Materials area 1179 | -9/Materials | Evolved 2 slots: Propulsion x1, Utility x1 1457 | -9/Materials | Met 8R-AWN 1462 | -9/Materials | Discovered new exit (range 12) 1478 | -9/Materials | Entered Mines 1479 | -9/Mines | Followed 8R-AWN into the Mines 1508 | -9/Mines | Learned Materials garrison access intel 1518 | -9/Mines | Build established: Scavenger-Mutant 1587 | -9/Mines | Discovered new exit (range 5) 1592 | -9/Mines | Entered Exiles 1626 | -9/Exiles | Welcomed by 8R-AWN 1646 | -9/Exiles | Met EX-HEX 1702 | -9/Exiles | Met EX-BIN 1782 | -9/Exiles | Aligned with FarCom system 1783 | -9/Exiles | Given EX-Vault access code 1819 | -9/Exiles | Opened EX-Vault 1837 | -9/Exiles | Found Skeleton Box 1865 | -9/Exiles | Warned to stay clear of 0b10 Research branches 1901 | -9/Exiles | Met EX-DEC 1941 | -9/Exiles | Discovered new exit (range 14) 1955 | -9/Exiles | Left Exiles lab with Skeleton Box 1955 | -9/Exiles | Entered Mines 2170 | -8/Mines | Lost 4 parts (1p1n2u) 2436 | -8/Mines | Discovered new exit (range 6) 2437 | -8/Mines | Build established: Skirmisher 2442 | -8/Mines | Entered Materials 2442 | -8/Materials | Evolved 2 slots: Propulsion x1, Utility x1 2443 | -8/Materials | Loaded intel: 1 garrison access location 2975 | -8/Materials | Lost 4 parts (1p1n1u1w) 3257 | -8/Materials | Build established: Scavenger-Mutant 3533 | -8/Materials | Discovered new exit (range 20) 3571 | -8/Materials | Entered Factory 3571 | -7/Factory | Evolved 2 slots: Power x1, Utility x1 3597 | -7/Factory | Lost 5 parts (1p2n1u1w) 4212 | -7/Factory | Lost 9 parts (2p2n2u3w) 4926 | -7/Factory | Core integrity fell below 50% 5174 | -7/Factory | Lost 6 parts (1p1u4w) 5208 | -7/Factory | Core integrity fell below 20% 5246 | -7/Factory | Destroyed by P-60 Hacker with Shock Rifle Last Messages --------------- 05191_ U-05 Engineer lays Concrete. 05192_ U-05 Engineer builds a Wall. 05196_ U-05 Engineer lays Concrete. 05198_ System corrupted: Matter fused (-8). 05198_ U-05 Engineer lays Concrete. 05203_ U-05 Engineer builds a Wall. 05205_ K-01 Serf collects debris. 05207_ U-05 Engineer lays Concrete. 05207_ Mic. Nuclear Core destroyed. 05209_ K-01 Serf collects debris. 05212_ U-05 Engineer lays Concrete. 05212_ U-05 Engineer builds a Wall. 05232_ System corrupted: Component data lost. 05235_ K-01 Serf collects debris. 05237_ Aluminum Leg destroyed. 05243_ Nuclear Reactor explodes. 05243_ Lgt. Nuclear Core destroyed. 05243_ Mic. Nuclear Core destroyed. 05243_ Lgt. EM Pulse Cannon destroyed. 05245_ Hacking Suite destroyed. Map ----- +----------------------------------------------------+ | ?????????????????????????????????????????????????? | | ?????????????????????????????????????????????????? | | ?????????????????????????????????????????????????? | | ?????????????????????????????????????????????????? | | ?????????????????????????????????????????????????? | | ?????????????????????????? ??????????????????????? | | ?????????????????????????? ?????????????????????? | | ????????????????????????? ?????????????????????? | | ????????????????????????? ??? ?????????????????? | | ????????????????????????? ??? ???????????????? | | ????????????????????????? ?? #?????????????? | | ?????????????????????????" "?? #?????????????? | | ????????????????????# ??? "?? ########+#####? | | ????????????????????# ??? """ # +? | | ????????????????????# ? """ # #? | | ????????????????????# u # #? | | ?????????????????#### """ """ # #? | | ?????????????????# """ """ # #? | | ???????????????### ss """ """ # #? | | ????????????????a s""" """ + #? | | ?????????????????# t# #? | | ?????????????????# # #? | | ?????????????????# #? #? | | ?????????????##### #???? ## | | ?????????????# #?????? ## | | ?????????????# @ #??????#######" | | ?????????????# p ############### | | ?????????????# #### # | | ????????????????????## # | | ?????????????????????# """ # | | ?????????????????????## """ # | | ??????????????????????# """ # # | | ??????????????????????# # # | | ??????????????????????# [# + | | ??????????????????????+ ] # # | | ??????????????????????# # # | | ???????????????????########## ^# | | #############??????# # ################ | | [ #??????# """" !# ^u#########"""""" | | #??????# ""F" # ## | | """"""" ######## %+ #? | | """"""" # ## # ## | | """"""" # ## """ # ## | | """"""" + " + """" [# # | | # ## """""%## ########## # | | """"""" # ## =! ## # # # | | """"""" ## ############# # """" # # | | """"""" ## #???????????# # """" + / | | """"""" ## #???????????# # """" # # | | ] ## #???????????# # """" # # | +----------------------------------------------------+ Best States ------------- Heat Dissipation 34 Energy Generation 25 Energy Capacity 430 Matter Stores 300 Matter Capacity 300 Sight Range 20 Robot Scan Range 15 Terrain Scan Range 16 Terrain Scan Density 10 Armor Coverage 300 Resistance: KI 20 Utility Shielding 66 Evasion (%) 55 Melee Accuracy 5 Target Analysis 7 Particle Charging 15 Offensive Hacking 10 Item Schematics ----------------- None Robot Schematics ------------------ None Fabricated ------------ Nothing Repaired ---------- Nothing Alien Tech Used ----------------- None Achievements -------------- Everything Is Under Control Librarian Challenges ------------ None Game ------ Seed DirtyFusionLauncher Manual? 0 Play Time 01:00:36 Cumulative 6.9 hours Start 2025.09.24 @ 15:53:31 End 2025.09.25 @ 00:19:50 Sessions 3 Manual Loads 0 Difficulty Rogue Special Mode None Game No. 12 Rogue 12 Adventurer 0 Explorer 0 Win Type - Total 0 Types 0/0/0/0/0/0/0/0/0/0 Lore% 3 Gallery% 11 Achievement% 10 Wizard Run 0 Options --------- Layout 0 ASCII 0 Keyboard 1 Movement Arrows Keybinds 0 Fullscreen 1 Font 24/Smallcaps Map View 76x50 Zoom Use 0% Tactical HUD 1 Map Filters NONE Filters NONE Steam 1 RUN: d8ca8ba4-5a38-4591-ac56-68514d1a8c98